[Event "Titled Tuesday Blitz June 20 Late 2023"]
[White "Doknjas, Neil"]
[Black "Martins, Bruno Andre Leite"]
[WhiteFideId "2617587"]
[BlackFideId "1942255"]
[WhiteElo "2152"]
[BlackElo "2241"]
[Result "0-1"]
[Round "9"]
[TimeControl "180+2"]
[Date "2023.06.20"]
[WhiteClock "0:00:15"]
[BlackClock "0:00:15"]
[Board "63"]

1. e4 {[%clk 0:03:00]}  c5 {[%clk 0:02:55]} 2. Nf3 {[%clk 0:03:00]}  d6 {[%clk 0:02:54]} 3. d4 {[%clk 0:02:59]}  cxd4 {[%clk 0:02:55]} 4. Nxd4 {[%clk 0:03:00]}  Nf6 {[%clk 0:02:53]} 5. Nc3 {[%clk 0:03:00]}  e5 {[%clk 0:02:53]} 6. Nb3 {[%clk 0:02:45]}  Be7 {[%clk 0:02:42]} 7. f3 {[%clk 0:02:33]}  O-O {[%clk 0:02:40]} 8. Be3 {[%clk 0:02:32]}  Be6 {[%clk 0:02:34]} 9. Nd5 {[%clk 0:02:12]}  Nxd5 {[%clk 0:02:21]} 10. exd5 {[%clk 0:02:12]}  Bf5 {[%clk 0:02:21]} 11. Bd3 {[%clk 0:02:11]}  Bxd3 {[%clk 0:01:48]} 12. Qxd3 {[%clk 0:02:11]}  a6 {[%clk 0:01:48]} 13. c4 {[%clk 0:02:06]}  f5 {[%clk 0:01:46]} 14. c5 {[%clk 0:02:02]}  dxc5 {[%clk 0:01:32]} 15. d6 {[%clk 0:01:36]}  Qxd6 {[%clk 0:01:29]} 16. Qc4+ {[%clk 0:01:36]}  Kh8 {[%clk 0:01:28]} 17. Bxc5 {[%clk 0:01:35]}  Qc7 {[%clk 0:01:14]} 18. Rc1 {[%clk 0:01:33]}  Nc6 {[%clk 0:01:14]} 19. O-O {[%clk 0:01:30]}  Rad8 {[%clk 0:01:09]} 20. Rfe1 {[%clk 0:01:17]}  Rfe8 {[%clk 0:00:59]} 21. Bxe7 {[%clk 0:01:11]}  Qxe7 {[%clk 0:00:58]} 22. Nc5 {[%clk 0:01:10]}  Nd4 {[%clk 0:00:55]} 23. Nd3 {[%clk 0:00:57]}  Qd6 {[%clk 0:00:43]} 24. f4 {[%clk 0:00:40]}  exf4 {[%clk 0:00:26]} 25. Nc5 {[%clk 0:00:28]}  f3 {[%clk 0:00:23]} 26. Nxb7 {[%clk 0:00:25]}  Qg6 {[%clk 0:00:23]} 27. g3 {[%clk 0:00:20]}  Ne2+ {[%clk 0:00:23]} 28. Kf2 {[%clk 0:00:19]}  Qh6 {[%clk 0:00:18]} 29. Nxd8 {[%clk 0:00:16]}  Qe3+ {[%clk 0:00:17]} 30. Kf1 {[%clk 0:00:16]}  Rxd8 {[%clk 0:00:15]} 31. Rxe2 {[%clk 0:00:15]}  fxe2+ {[%clk 0:00:15]} 32. Qxe2 {[%clk 0:00:16]}  Qxc1+ {[%clk 0:00:15]} 33. Kg2 {[%clk 0:00:15]}  Rd2 {[%clk 0:00:15]} 0-1


[Site "https://www.chess.com"]

[Event "Titled Tuesday Blitz June 20 Late 2023"]
[White "Vlassov, Nikolai"]
[Black "Fiedorek, Michal"]
[WhiteFideId "4103360"]
[BlackFideId "1199528"]
[WhiteElo "2324"]
[BlackElo "2135"]
[Result "0-1"]
[Round "9"]
[TimeControl "180+2"]
[Date "2023.06.20"]
[WhiteClock "0:00:56"]
[BlackClock "0:00:59"]
[Board "65"]

1. e4 {[%clk 0:03:00]}  c6 {[%clk 0:02:57]} 2. d4 {[%clk 0:03:00]}  d5 {[%clk 0:02:58]} 3. e5 {[%clk 0:03:00]}  Bf5 {[%clk 0:02:54]} 4. Nc3 {[%clk 0:03:00]}  h5 {[%clk 0:02:51]} 5. Nf3 {[%clk 0:02:59]}  e6 {[%clk 0:02:51]} 6. Bd3 {[%clk 0:02:59]}  Ne7 {[%clk 0:02:48]} 7. O-O {[%clk 0:02:58]}  Bxd3 {[%clk 0:02:47]} 8. Qxd3 {[%clk 0:02:57]}  Nf5 {[%clk 0:02:48]} 9. Ne2 {[%clk 0:02:57]}  Nd7 {[%clk 0:02:42]} 10. Ng3 {[%clk 0:02:56]}  g6 {[%clk 0:02:39]} 11. Bg5 {[%clk 0:02:47]}  Be7 {[%clk 0:02:39]} 12. Nxf5 {[%clk 0:02:42]}  gxf5 {[%clk 0:02:37]} 13. h4 {[%clk 0:02:41]}  Bxg5 {[%clk 0:02:25]} 14. Nxg5 {[%clk 0:02:36]}  Qe7 {[%clk 0:02:25]} 15. b3 {[%clk 0:02:33]}  O-O-O {[%clk 0:02:24]} 16. Rfe1 {[%clk 0:02:16]}  Nf8 {[%clk 0:02:21]} 17. g3 {[%clk 0:02:09]}  Nh7 {[%clk 0:02:15]} 18. f4 {[%clk 0:02:01]}  Kb8 {[%clk 0:02:02]} 19. c4 {[%clk 0:01:57]}  dxc4 {[%clk 0:01:59]} 20. bxc4 {[%clk 0:01:57]}  Rd7 {[%clk 0:01:23]} 21. Red1 {[%clk 0:01:52]}  Nxg5 {[%clk 0:01:21]} 22. hxg5 {[%clk 0:01:50]}  h4 {[%clk 0:01:20]} 23. Kg2 {[%clk 0:01:48]}  hxg3 {[%clk 0:01:20]} 24. Kxg3 {[%clk 0:01:45]}  Rhd8 {[%clk 0:01:14]} 25. Rd2 {[%clk 0:01:10]}  Rxd4 {[%clk 0:00:59]} 26. Qxd4 {[%clk 0:01:06]}  Rxd4 {[%clk 0:00:59]} 27. Rxd4 {[%clk 0:01:06]}  Qa3+ {[%clk 0:01:00]} 28. Kh4 {[%clk 0:01:05]}  Qb2 {[%clk 0:01:00]} 29. Rd8+ {[%clk 0:00:55]}  Kc7 {[%clk 0:01:00]} 30. Rad1 {[%clk 0:00:56]}  Qh2# {[%clk 0:00:59]} 0-1


[Site "https://www.chess.com"]

[Event "Titled Tuesday Blitz June 20 Late 2023"]
[White "Pinheiro, Iung Alicio de O."]
[Black "Carrasco Miranda, Andres"]
[WhiteFideId "2104350"]
[BlackFideId "3405990"]
[WhiteElo "2283"]
[BlackElo "2183"]
[Result "1-0"]
[Round "9"]
[TimeControl "180+2"]
[Date "2023.06.20"]
[WhiteClock "0:00:05"]
[BlackClock "0:00:03"]
[Board "67"]

1. e4 {[%clk 0:03:00]}  e5 {[%clk 0:02:57]} 2. Nf3 {[%clk 0:03:00]}  Nc6 {[%clk 0:02:57]} 3. Bc4 {[%clk 0:02:58]}  Bc5 {[%clk 0:02:56]} 4. b4 {[%clk 0:02:52]}  Bxb4 {[%clk 0:02:53]} 5. c3 {[%clk 0:02:52]}  Be7 {[%clk 0:02:53]} 6. d4 {[%clk 0:02:51]}  Na5 {[%clk 0:02:53]} 7. Be2 {[%clk 0:02:51]}  d6 {[%clk 0:02:48]} 8. dxe5 {[%clk 0:02:44]}  dxe5 {[%clk 0:02:48]} 9. Qa4+ {[%clk 0:02:42]}  c6 {[%clk 0:02:28]} 10. Nxe5 {[%clk 0:02:42]}  Nf6 {[%clk 0:02:24]} 11. O-O {[%clk 0:02:40]}  b5 {[%clk 0:02:15]} 12. Qc2 {[%clk 0:02:37]}  O-O {[%clk 0:02:14]} 13. Bg5 {[%clk 0:02:26]}  h6 {[%clk 0:01:58]} 14. Bh4 {[%clk 0:02:23]}  Be6 {[%clk 0:01:53]} 15. Nd2 {[%clk 0:02:22]}  Nd7 {[%clk 0:01:45]} 16. Bg3 {[%clk 0:01:56]}  Nxe5 {[%clk 0:01:33]} 17. Bxe5 {[%clk 0:01:56]}  Bf6 {[%clk 0:01:28]} 18. Bg3 {[%clk 0:01:50]}  Qb6 {[%clk 0:01:18]} 19. Bd6 {[%clk 0:01:33]}  Rfd8 {[%clk 0:01:12]} 20. e5 {[%clk 0:01:33]}  Nb7 {[%clk 0:00:59]} 21. exf6 {[%clk 0:01:17]}  Nxd6 {[%clk 0:00:58]} 22. fxg7 {[%clk 0:01:16]}  Qc5 {[%clk 0:00:54]} 23. Nf3 {[%clk 0:01:08]}  Bf5 {[%clk 0:00:47]} 24. Qc1 {[%clk 0:01:07]}  Kxg7 {[%clk 0:00:45]} 25. Nd4 {[%clk 0:01:02]}  Bg6 {[%clk 0:00:45]} 26. Qf4 {[%clk 0:00:58]}  Qxc3 {[%clk 0:00:36]} 27. Rac1 {[%clk 0:00:55]}  Qa3 {[%clk 0:00:21]} 28. Qe5+ {[%clk 0:00:37]}  Kg8 {[%clk 0:00:20]} 29. Nxc6 {[%clk 0:00:33]}  Re8 {[%clk 0:00:17]} 30. Ne7+ {[%clk 0:00:25]}  Kh7 {[%clk 0:00:17]} 31. Rc7 {[%clk 0:00:23]}  Nf5 {[%clk 0:00:13]} 32. Bf3 {[%clk 0:00:13]}  Rad8 {[%clk 0:00:11]} 33. Nxg6 {[%clk 0:00:10]}  Rxe5 {[%clk 0:00:10]} 34. Nxe5 {[%clk 0:00:11]}  Nd4 {[%clk 0:00:10]} 35. Rxf7+ {[%clk 0:00:11]}  Kg8 {[%clk 0:00:11]} 36. Rb7 {[%clk 0:00:09]}  Nxf3+ {[%clk 0:00:09]} 37. gxf3 {[%clk 0:00:08]}  Qxa2 {[%clk 0:00:09]} 38. Kh1 {[%clk 0:00:07]}  Kf8 {[%clk 0:00:04]} 39. Rg1 {[%clk 0:00:07]}  Qxf2 {[%clk 0:00:04]} 40. Ng6+ {[%clk 0:00:06]}  Kg8 {[%clk 0:00:03]} 41. Ne5+ {[%clk 0:00:05]}  Kf8 {[%clk 0:00:03]} 42. Rf7+ {[%clk 0:00:05]}  Ke8 {[%clk 0:00:03]} 43. Rg8# {[%clk 0:00:05]} 1-0


[Site "https://www.chess.com"]

[Event "Titled Tuesday Blitz June 20 Late 2023"]
[White "brm72"]
[Black "Sivakumar, Shaaketh"]
[BlackFideId "30940176"]
[WhiteElo "2563"]
[BlackElo "2174"]
[Result "0-1"]
[Round "9"]
[TimeControl "180+2"]
[Date "2023.06.20"]
[WhiteClock "0:00:02"]
[BlackClock "0:00:09"]
[Board "68"]

1. e4 {[%clk 0:03:00]}  e6 {[%clk 0:02:58]} 2. d4 {[%clk 0:03:00]}  d5 {[%clk 0:02:41]} 3. e5 {[%clk 0:02:57]}  c5 {[%clk 0:02:40]} 4. c3 {[%clk 0:02:57]}  Nc6 {[%clk 0:02:40]} 5. Nf3 {[%clk 0:02:58]}  Qb6 {[%clk 0:02:32]} 6. Bd3 {[%clk 0:02:58]}  cxd4 {[%clk 0:02:29]} 7. O-O {[%clk 0:02:57]}  Bd7 {[%clk 0:02:28]} 8. Re1 {[%clk 0:02:57]}  Rc8 {[%clk 0:02:25]} 9. Nbd2 {[%clk 0:02:56]}  dxc3 {[%clk 0:02:14]} 10. bxc3 {[%clk 0:02:57]}  Bc5 {[%clk 0:02:11]} 11. Qe2 {[%clk 0:02:51]}  Na5 {[%clk 0:02:05]} 12. Rb1 {[%clk 0:02:48]}  Qc7 {[%clk 0:02:02]} 13. Nb3 {[%clk 0:02:49]}  Nxb3 {[%clk 0:01:59]} 14. axb3 {[%clk 0:02:50]}  Ne7 {[%clk 0:01:57]} 15. h4 {[%clk 0:02:48]}  Qd8 {[%clk 0:01:21]} 16. h5 {[%clk 0:01:39]}  h6 {[%clk 0:01:20]} 17. Nh4 {[%clk 0:01:39]}  Nc6 {[%clk 0:01:17]} 18. Qg4 {[%clk 0:01:37]}  Bf8 {[%clk 0:01:16]} 19. Bf4 {[%clk 0:01:28]}  Na5 {[%clk 0:01:10]} 20. c4 {[%clk 0:01:17]}  Bc6 {[%clk 0:01:06]} 21. c5 {[%clk 0:01:05]}  a6 {[%clk 0:00:51]} 22. b4 {[%clk 0:00:52]}  Nc4 {[%clk 0:00:50]} 23. Re2 {[%clk 0:00:38]}  Bb5 {[%clk 0:00:49]} 24. Rd1 {[%clk 0:00:33]}  Na3 {[%clk 0:00:48]} 25. Re3 {[%clk 0:00:28]}  Bxd3 {[%clk 0:00:46]} 26. Rdxd3 {[%clk 0:00:29]}  Nc2 {[%clk 0:00:45]} 27. Rf3 {[%clk 0:00:25]}  Nxb4 {[%clk 0:00:43]} 28. Rb3 {[%clk 0:00:19]}  Nc6 {[%clk 0:00:41]} 29. Rxb7 {[%clk 0:00:19]}  Rc7 {[%clk 0:00:36]} 30. Rb6 {[%clk 0:00:18]}  Bxc5 {[%clk 0:00:29]} 31. Qxg7 {[%clk 0:00:18]}  Rf8 {[%clk 0:00:29]} 32. Bxh6 {[%clk 0:00:16]}  Qxh4 {[%clk 0:00:27]} 33. Rxa6 {[%clk 0:00:12]}  Nd8 {[%clk 0:00:20]} 34. Ra8 {[%clk 0:00:11]}  Be7 {[%clk 0:00:17]} 35. g3 {[%clk 0:00:06]}  Qe4 {[%clk 0:00:16]} 36. Rxd8+ {[%clk 0:00:02]}  Kxd8 {[%clk 0:00:15]} 37. Rxf7 {[%clk 0:00:03]}  Rxf7 {[%clk 0:00:14]} 38. Qxf7 {[%clk 0:00:04]}  Qf5 {[%clk 0:00:09]} 39. Qg8+ {[%clk 0:00:02]}  Kd7 {[%clk 0:00:10]} 40. Bg7 {[%clk 0:00:01]}  Rc1+ {[%clk 0:00:10]} 41. Kg2 {[%clk 0:00:02]}  Qe4+ {[%clk 0:00:10]} 42. Kh3 {[%clk 0:00:02]}  Rh1# {[%clk 0:00:09]} 0-1


[Site "https://www.chess.com"]

[Event "Titled Tuesday Blitz June 20 Late 2023"]
[White "Buchenau, Frank"]
[Black "Leenhouts, Koen"]
[WhiteFideId "4604350"]
[BlackFideId "1008439"]
[WhiteElo "2157"]
[BlackElo "2409"]
[Result "1-0"]
[Round "9"]
[TimeControl "180+2"]
[Date "2023.06.20"]
[WhiteClock "0:00:14"]
[BlackClock "0:00:05"]
[Board "69"]

1. e4 {[%clk 0:03:00]}  e5 {[%clk 0:02:47]} 2. Bc4 {[%clk 0:03:00]}  Nf6 {[%clk 0:02:46]} 3. d3 {[%clk 0:03:00]}  c6 {[%clk 0:02:46]} 4. Nf3 {[%clk 0:03:00]}  d6 {[%clk 0:02:43]} 5. O-O {[%clk 0:02:59]}  Be7 {[%clk 0:02:42]} 6. c3 {[%clk 0:02:58]}  O-O {[%clk 0:02:42]} 7. Bb3 {[%clk 0:02:58]}  Be6 {[%clk 0:02:41]} 8. Bxe6 {[%clk 0:02:53]}  fxe6 {[%clk 0:02:40]} 9. Qb3 {[%clk 0:02:39]}  Qd7 {[%clk 0:02:39]} 10. Ng5 {[%clk 0:02:36]}  d5 {[%clk 0:02:39]} 11. Nf3 {[%clk 0:02:22]}  Qc7 {[%clk 0:02:31]} 12. Ng5 {[%clk 0:02:12]}  Qd7 {[%clk 0:02:27]} 13. Re1 {[%clk 0:02:08]}  Ng4 {[%clk 0:02:02]} 14. Nf3 {[%clk 0:02:01]}  Bd6 {[%clk 0:01:43]} 15. h3 {[%clk 0:01:54]}  Rxf3 {[%clk 0:01:35]} 16. gxf3 {[%clk 0:01:53]}  Nf6 {[%clk 0:01:32]} 17. Nd2 {[%clk 0:01:49]}  Na6 {[%clk 0:01:23]} 18. d4 {[%clk 0:01:45]}  Qf7 {[%clk 0:00:37]} 19. f4 {[%clk 0:01:20]}  Qg6+ {[%clk 0:00:25]} 20. Kh2 {[%clk 0:01:06]}  exf4 {[%clk 0:00:16]} 21. e5 {[%clk 0:01:06]}  Qh5 {[%clk 0:00:16]} 22. Qd1 {[%clk 0:01:01]}  Qh4 {[%clk 0:00:14]} 23. Qe2 {[%clk 0:00:50]}  Rf8 {[%clk 0:00:10]} 24. exd6 {[%clk 0:00:46]}  Kh8 {[%clk 0:00:08]} 25. Nf3 {[%clk 0:00:44]}  Ng4+ {[%clk 0:00:07]} 26. Kg2 {[%clk 0:00:43]}  Qh5 {[%clk 0:00:06]} 27. hxg4 {[%clk 0:00:42]}  Qxg4+ {[%clk 0:00:06]} 28. Kh1 {[%clk 0:00:42]}  Qh3+ {[%clk 0:00:06]} 29. Nh2 {[%clk 0:00:41]}  f3 {[%clk 0:00:06]} 30. Qf1 {[%clk 0:00:41]}  Qh4 {[%clk 0:00:05]} 31. Rxe6 {[%clk 0:00:38]}  Nb8 {[%clk 0:00:04]} 32. Bd2 {[%clk 0:00:32]}  Nd7 {[%clk 0:00:04]} 33. Rae1 {[%clk 0:00:32]}  Nf6 {[%clk 0:00:05]} 34. Kg1 {[%clk 0:00:23]}  Ng4 {[%clk 0:00:04]} 35. Nxg4 {[%clk 0:00:18]}  Qxg4+ {[%clk 0:00:04]} 36. Kh2 {[%clk 0:00:18]}  Qh4+ {[%clk 0:00:04]} 37. Qh3 {[%clk 0:00:16]}  Qxf2+ {[%clk 0:00:04]} 38. Kh1 {[%clk 0:00:16]}  Qxd2 {[%clk 0:00:05]} 39. Re8 {[%clk 0:00:16]}  Qf4 {[%clk 0:00:05]} 40. Rxf8+ {[%clk 0:00:16]}  Qxf8 {[%clk 0:00:05]} 41. d7 {[%clk 0:00:16]}  f2 {[%clk 0:00:06]} 42. Re8 {[%clk 0:00:15]}  f1=Q+ {[%clk 0:00:05]} 43. Qxf1 {[%clk 0:00:15]}  Qxe8 {[%clk 0:00:05]} 44. dxe8=Q# {[%clk 0:00:14]} 1-0


[Site "https://www.chess.com"]

[Event "Titled Tuesday Blitz June 20 Late 2023"]
[White "Buscar, Michael"]
[Black "Zaitsev, Alexander"]
[WhiteFideId "2603616"]
[BlackFideId "4164490"]
[WhiteElo "2010"]
[BlackElo "2373"]
[Result "1-0"]
[Round "9"]
[TimeControl "180+2"]
[Date "2023.06.20"]
[WhiteClock "0:00:19"]
[BlackClock "0:00:00"]
[Board "74"]

1. d4 {[%clk 0:03:00]}  Nf6 {[%clk 0:02:59]} 2. c4 {[%clk 0:03:00]}  e6 {[%clk 0:03:00]} 3. Nc3 {[%clk 0:03:01]}  Bb4 {[%clk 0:03:01]} 4. e3 {[%clk 0:02:58]}  b6 {[%clk 0:03:01]} 5. Bd3 {[%clk 0:02:58]}  Bb7 {[%clk 0:03:01]} 6. Ne2 {[%clk 0:02:58]}  Bxg2 {[%clk 0:02:54]} 7. Rg1 {[%clk 0:02:59]}  Bf3 {[%clk 0:02:15]} 8. Rxg7 {[%clk 0:02:56]}  Nh5 {[%clk 0:02:10]} 9. Rxh7 {[%clk 0:02:46]}  Rxh7 {[%clk 0:02:04]} 10. Bxh7 {[%clk 0:02:46]}  Qh4 {[%clk 0:01:49]} 11. Qd3 {[%clk 0:02:42]}  Nf6 {[%clk 0:01:25]} 12. Bf5 {[%clk 0:02:32]}  exf5 {[%clk 0:01:14]} 13. Qxf5 {[%clk 0:02:30]}  Bxe2 {[%clk 0:00:39]} 14. Qe5+ {[%clk 0:02:19]}  Kd8 {[%clk 0:00:36]} 15. Kxe2 {[%clk 0:02:18]}  Nc6 {[%clk 0:00:36]} 16. Qg3 {[%clk 0:02:14]}  Qh5+ {[%clk 0:00:32]} 17. Qf3 {[%clk 0:02:11]}  Bxc3 {[%clk 0:00:27]} 18. bxc3 {[%clk 0:02:10]}  Ke7 {[%clk 0:00:20]} 19. Ba3+ {[%clk 0:02:05]}  d6 {[%clk 0:00:20]} 20. Rg1 {[%clk 0:02:03]}  Rh8 {[%clk 0:00:19]} 21. Rg2 {[%clk 0:01:57]}  Na5 {[%clk 0:00:18]} 22. c5 {[%clk 0:01:54]}  Nc4 {[%clk 0:00:15]} 23. cxd6+ {[%clk 0:01:52]}  cxd6 {[%clk 0:00:16]} 24. Bc1 {[%clk 0:01:47]}  d5 {[%clk 0:00:17]} 25. Qxh5 {[%clk 0:01:35]}  Rxh5 {[%clk 0:00:18]} 26. f3 {[%clk 0:01:34]}  b5 {[%clk 0:00:18]} 27. Kf2 {[%clk 0:01:24]}  a5 {[%clk 0:00:18]} 28. Kg1 {[%clk 0:01:22]}  a4 {[%clk 0:00:18]} 29. Re2 {[%clk 0:01:22]}  Rh4 {[%clk 0:00:14]} 30. Kg2 {[%clk 0:01:21]}  Kd6 {[%clk 0:00:13]} 31. Kg3 {[%clk 0:01:22]}  Rh8 {[%clk 0:00:13]} 32. e4 {[%clk 0:01:22]}  dxe4 {[%clk 0:00:14]} 33. fxe4 {[%clk 0:01:22]}  Rg8+ {[%clk 0:00:14]} 34. Kf3 {[%clk 0:01:19]}  Nd7 {[%clk 0:00:15]} 35. h4 {[%clk 0:01:11]}  Rh8 {[%clk 0:00:12]} 36. Rh2 {[%clk 0:01:08]}  f6 {[%clk 0:00:11]} 37. h5 {[%clk 0:01:07]}  Ke6 {[%clk 0:00:12]} 38. h6 {[%clk 0:01:07]}  f5 {[%clk 0:00:13]} 39. exf5+ {[%clk 0:01:06]}  Kxf5 {[%clk 0:00:13]} 40. Rh5+ {[%clk 0:01:06]}  Kg6 {[%clk 0:00:13]} 41. Rxb5 {[%clk 0:01:06]}  Rf8+ {[%clk 0:00:10]} 42. Ke2 {[%clk 0:01:01]}  Re8+ {[%clk 0:00:10]} 43. Kd3 {[%clk 0:01:00]}  Ndb6 {[%clk 0:00:10]} 44. Rg5+ {[%clk 0:00:56]}  Kh7 {[%clk 0:00:10]} 45. Rg7+ {[%clk 0:00:56]}  Kh8 {[%clk 0:00:10]} 46. Bg5 {[%clk 0:00:47]}  Re6 {[%clk 0:00:11]} 47. Re7 {[%clk 0:00:40]}  Rg6 {[%clk 0:00:10]} 48. Bf4 {[%clk 0:00:38]}  Rf6 {[%clk 0:00:09]} 49. Bg5 {[%clk 0:00:26]}  Rg6 {[%clk 0:00:09]} 50. Bf4 {[%clk 0:00:24]}  Rg4 {[%clk 0:00:08]} 51. Bc7 {[%clk 0:00:22]}  Rh4 {[%clk 0:00:04]} 52. Re6 {[%clk 0:00:22]}  Nd5 {[%clk 0:00:03]} 53. Re8+ {[%clk 0:00:18]}  Kh7 {[%clk 0:00:03]} 54. Kxc4 {[%clk 0:00:18]}  Nxc7 {[%clk 0:00:03]} 55. Re7+ {[%clk 0:00:19]}  Kxh6 {[%clk 0:00:04]} 56. Rxc7 {[%clk 0:00:20]}  Rh2 {[%clk 0:00:04]} 57. a3 {[%clk 0:00:19]}  Ra2 {[%clk 0:00:04]} 58. Kb4 {[%clk 0:00:19]}  Kg6 {[%clk 0:00:03]} 59. Kxa4 {[%clk 0:00:19]}  Kf6 {[%clk 0:00:03]} 60. Kb3 {[%clk 0:00:20]}  Ra1 {[%clk 0:00:03]} 61. a4 {[%clk 0:00:20]}  Ke6 {[%clk 0:00:04]} 62. Rc5 {[%clk 0:00:20]}  Kd6 {[%clk 0:00:04]} 63. a5 {[%clk 0:00:20]}  Rb1+ {[%clk 0:00:04]} 64. Ka4 {[%clk 0:00:21]}  Rb2 {[%clk 0:00:04]} 65. a6 {[%clk 0:00:18]}  Rb1 {[%clk 0:00:03]} 66. Ka5 {[%clk 0:00:19]}  Rb2 {[%clk 0:00:00]} 67. a7 {[%clk 0:00:19]} 1-0


[Site "https://www.chess.com"]

[Event "Titled Tuesday Blitz June 20 Late 2023"]
[White "Bilan, Danila"]
[Black "Hoffmann, Asa"]
[WhiteFideId "24161918"]
[BlackFideId "2001470"]
[WhiteElo "2146"]
[BlackElo "2117"]
[Result "1-0"]
[Round "9"]
[TimeControl "180+2"]
[Date "2023.06.20"]
[WhiteClock "0:00:05"]
[BlackClock "0:00:38"]
[Board "75"]

1. d4 {[%clk 0:02:50]}  Nf6 {[%clk 0:02:57]} 2. Nf3 {[%clk 0:02:50]}  d6 {[%clk 0:02:57]} 3. Bg5 {[%clk 0:02:48]}  Nbd7 {[%clk 0:02:56]} 4. c3 {[%clk 0:02:47]}  b6 {[%clk 0:02:55]} 5. e3 {[%clk 0:02:47]}  Bb7 {[%clk 0:02:55]} 6. Bc4 {[%clk 0:02:47]}  e6 {[%clk 0:02:54]} 7. Nbd2 {[%clk 0:02:46]}  Be7 {[%clk 0:02:54]} 8. O-O {[%clk 0:02:46]}  c5 {[%clk 0:02:54]} 9. Qe2 {[%clk 0:02:41]}  O-O {[%clk 0:02:53]} 10. e4 {[%clk 0:02:36]}  d5 {[%clk 0:02:49]} 11. exd5 {[%clk 0:02:30]}  Nxd5 {[%clk 0:02:48]} 12. Bxe7 {[%clk 0:02:25]}  Qxe7 {[%clk 0:02:48]} 13. Rad1 {[%clk 0:02:14]}  cxd4 {[%clk 0:02:47]} 14. cxd4 {[%clk 0:02:00]}  Rac8 {[%clk 0:02:46]} 15. Rc1 {[%clk 0:01:57]}  Rfe8 {[%clk 0:02:37]} 16. Bb5 {[%clk 0:01:49]}  Red8 {[%clk 0:02:27]} 17. a3 {[%clk 0:01:41]}  Nf4 {[%clk 0:02:21]} 18. Qe3 {[%clk 0:01:37]}  Nd5 {[%clk 0:02:20]} 19. Qb3 {[%clk 0:01:30]}  N7f6 {[%clk 0:02:16]} 20. Ne5 {[%clk 0:01:12]}  Nf4 {[%clk 0:02:13]} 21. Nc6 {[%clk 0:01:04]}  Bxc6 {[%clk 0:02:07]} 22. Rxc6 {[%clk 0:01:04]}  Rxc6 {[%clk 0:02:04]} 23. Bxc6 {[%clk 0:01:05]}  Rxd4 {[%clk 0:02:00]} 24. Nf3 {[%clk 0:00:52]}  Rd6 {[%clk 0:01:54]} 25. Bb5 {[%clk 0:00:52]}  N6d5 {[%clk 0:01:45]} 26. g3 {[%clk 0:00:48]}  Ng6 {[%clk 0:01:41]} 27. Rc1 {[%clk 0:00:48]}  h6 {[%clk 0:01:39]} 28. Bd3 {[%clk 0:00:44]}  Qf6 {[%clk 0:01:38]} 29. Rc8+ {[%clk 0:00:40]}  Kh7 {[%clk 0:01:38]} 30. h4 {[%clk 0:00:26]}  Ne7 {[%clk 0:01:37]} 31. Rc7 {[%clk 0:00:19]}  Nf5 {[%clk 0:01:26]} 32. h5 {[%clk 0:00:13]}  Ne5 {[%clk 0:01:23]} 33. Nxe5 {[%clk 0:00:09]}  Qxe5 {[%clk 0:01:23]} 34. Rxf7 {[%clk 0:00:10]}  Qd5 {[%clk 0:01:08]} 35. Qxd5 {[%clk 0:00:05]}  Rxd5 {[%clk 0:01:08]} 36. Be4 {[%clk 0:00:04]}  Re5 {[%clk 0:01:07]} 37. Bxf5+ {[%clk 0:00:02]}  exf5 {[%clk 0:01:04]} 38. Rxa7 {[%clk 0:00:02]}  f4 {[%clk 0:01:01]} 39. g4 {[%clk 0:00:02]}  f3 {[%clk 0:01:01]} 40. Kh2 {[%clk 0:00:03]}  Re2 {[%clk 0:01:00]} 41. Kg3 {[%clk 0:00:03]}  Rxb2 {[%clk 0:01:00]} 42. Kxf3 {[%clk 0:00:04]}  b5 {[%clk 0:01:00]} 43. Rb7 {[%clk 0:00:04]}  Rb3+ {[%clk 0:00:58]} 44. Kf4 {[%clk 0:00:03]}  Rxa3 {[%clk 0:00:58]} 45. Rxb5 {[%clk 0:00:04]}  Ra2 {[%clk 0:00:57]} 46. f3 {[%clk 0:00:04]}  Ra7 {[%clk 0:00:56]} 47. Rf5 {[%clk 0:00:04]}  Re7 {[%clk 0:00:55]} 48. Re5 {[%clk 0:00:04]}  Rf7+ {[%clk 0:00:55]} 49. Ke4 {[%clk 0:00:05]}  Rf6 {[%clk 0:00:55]} 50. f4 {[%clk 0:00:05]}  Rf7 {[%clk 0:00:55]} 51. g5 {[%clk 0:00:06]}  hxg5 {[%clk 0:00:54]} 52. fxg5 {[%clk 0:00:06]}  g6 {[%clk 0:00:54]} 53. Re6 {[%clk 0:00:04]}  Rg7 {[%clk 0:00:47]} 54. h6 {[%clk 0:00:02]}  Rf7 {[%clk 0:00:46]} 55. Ke5 {[%clk 0:00:02]}  Ra7 {[%clk 0:00:45]} 56. Kf6 {[%clk 0:00:02]}  Rb7 {[%clk 0:00:44]} 57. Re7+ {[%clk 0:00:02]}  Rxe7 {[%clk 0:00:43]} 58. Kxe7 {[%clk 0:00:03]}  Kh8 {[%clk 0:00:43]} 59. Kf6 {[%clk 0:00:03]}  Kh7 {[%clk 0:00:43]} 60. Kf7 {[%clk 0:00:03]}  Kh8 {[%clk 0:00:43]} 61. Kxg6 {[%clk 0:00:04]}  Kg8 {[%clk 0:00:43]} 62. Kh5 {[%clk 0:00:05]}  Kf7 {[%clk 0:00:38]} 63. g6+ {[%clk 0:00:05]} 1-0


[Site "https://www.chess.com"]

[Event "Titled Tuesday Blitz June 20 Late 2023"]
[White "Cluke86"]
[Black "Papayan, Oleg"]
[BlackFideId "4193911"]
[WhiteElo "2278"]
[BlackElo "2167"]
[Result "0-1"]
[Round "9"]
[TimeControl "180+2"]
[Date "2023.06.20"]
[WhiteClock "0:00:07"]
[BlackClock "0:00:17"]
[Board "77"]

1. e4 {[%clk 0:03:00]}  e5 {[%clk 0:02:56]} 2. Nf3 {[%clk 0:03:00]}  Nc6 {[%clk 0:02:54]} 3. Bc4 {[%clk 0:03:00]}  Nf6 {[%clk 0:02:54]} 4. O-O {[%clk 0:02:59]}  Nxe4 {[%clk 0:02:54]} 5. Nc3 {[%clk 0:02:59]}  Nxc3 {[%clk 0:02:54]} 6. dxc3 {[%clk 0:03:00]}  f6 {[%clk 0:02:55]} 7. Re1 {[%clk 0:02:50]}  Qe7 {[%clk 0:02:36]} 8. Nd4 {[%clk 0:02:47]}  d6 {[%clk 0:02:22]} 9. f4 {[%clk 0:02:44]}  Nxd4 {[%clk 0:01:48]} 10. cxd4 {[%clk 0:02:42]}  Be6 {[%clk 0:01:48]} 11. Bxe6 {[%clk 0:02:23]}  Qxe6 {[%clk 0:01:48]} 12. d5 {[%clk 0:02:23]}  Qd7 {[%clk 0:01:36]} 13. c4 {[%clk 0:02:19]}  Be7 {[%clk 0:01:32]} 14. Qh5+ {[%clk 0:02:16]}  g6 {[%clk 0:01:29]} 15. Qe2 {[%clk 0:02:05]}  O-O {[%clk 0:01:27]} 16. Bd2 {[%clk 0:01:58]}  Rae8 {[%clk 0:01:27]} 17. Qf3 {[%clk 0:01:53]}  f5 {[%clk 0:01:21]} 18. fxe5 {[%clk 0:01:50]}  dxe5 {[%clk 0:01:22]} 19. Kh1 {[%clk 0:01:30]}  e4 {[%clk 0:01:20]} 20. Qh3 {[%clk 0:01:27]}  Bf6 {[%clk 0:01:19]} 21. Bc3 {[%clk 0:01:10]}  Qg7 {[%clk 0:01:19]} 22. Bb4 {[%clk 0:01:07]}  Rf7 {[%clk 0:01:13]} 23. Qe3 {[%clk 0:00:55]}  Bxb2 {[%clk 0:01:11]} 24. Rad1 {[%clk 0:00:55]}  b6 {[%clk 0:00:56]} 25. c5 {[%clk 0:00:53]}  f4 {[%clk 0:00:48]} 26. Qb3 {[%clk 0:00:50]}  f3 {[%clk 0:00:41]} 27. gxf3 {[%clk 0:00:48]}  Rxf3 {[%clk 0:00:33]} 28. Qxf3 {[%clk 0:00:41]}  exf3 {[%clk 0:00:34]} 29. Rxe8+ {[%clk 0:00:41]}  Kf7 {[%clk 0:00:35]} 30. Rde1 {[%clk 0:00:37]}  Qd4 {[%clk 0:00:34]} 31. cxb6 {[%clk 0:00:29]}  f2 {[%clk 0:00:29]} 32. R8e7+ {[%clk 0:00:16]}  Kf6 {[%clk 0:00:27]} 33. R7e6+ {[%clk 0:00:15]}  Kg5 {[%clk 0:00:28]} 34. Be7+ {[%clk 0:00:14]}  Kh6 {[%clk 0:00:25]} 35. Bf8+ {[%clk 0:00:13]}  Kg5 {[%clk 0:00:24]} 36. Be7+ {[%clk 0:00:14]}  Kh6 {[%clk 0:00:17]} 37. Bf8+ {[%clk 0:00:13]}  Kh5 {[%clk 0:00:18]} 38. Rf1 {[%clk 0:00:11]}  Qxd5+ {[%clk 0:00:17]} 39. Re4 {[%clk 0:00:07]}  Qxe4# {[%clk 0:00:17]} 0-1


[Site "https://www.chess.com"]